[Event "January 2 Late 2024"]
[Site "https://www.chess.com"]
[Date "2024.01.02"]
[Round "6"]
[White "Balla, Tamas-Kristof"]
[Black "Cueto, Jonny"]
[Result "0-1"]
[Board "173"]
[TimeControl "180+1"]
[WhiteFideId "1208497"]
[BlackFideId "3300145"]
[WhiteElo "2457"]
[BlackElo "2238"]
[WhiteTeam "ROU"]
[BlackTeam "BOL"]
[WhiteClock "0:00:01"]
[BlackClock "0:00:04"]

1. e4 {[%clk 0:03:00]}  e6 {[%clk 0:02:56]} 2. d4 {[%clk 0:03:00]}  d5 {[%clk 0:02:54]} 3. Nd2 {[%clk 0:03:01]}  Nc6 {[%clk 0:02:53]} 4. c3 {[%clk 0:03:00]}  e5 {[%clk 0:02:51]} 5. exd5 {[%clk 0:02:59]}  Qxd5 {[%clk 0:02:48]} 6. Ngf3 {[%clk 0:03:00]}  exd4 {[%clk 0:02:48]} 7. Bc4 {[%clk 0:02:58]}  Qh5 {[%clk 0:02:48]} 8. cxd4 {[%clk 0:02:59]}  Bg4 {[%clk 0:02:46]} 9. O-O {[%clk 0:02:40]}  Bd6 {[%clk 0:02:47]} 10. h3 {[%clk 0:02:36]}  Bxf3 {[%clk 0:02:39]} 11. Nxf3 {[%clk 0:02:36]}  Nf6 {[%clk 0:02:25]} 12. Qb3 {[%clk 0:02:31]}  O-O {[%clk 0:02:22]} 13. Qxb7 {[%clk 0:02:20]}  Na5 {[%clk 0:02:00]} 14. Qa6 {[%clk 0:02:12]}  Rab8 {[%clk 0:01:31]} 15. Bg5 {[%clk 0:01:53]}  Nxc4 {[%clk 0:01:18]} 16. Qxc4 {[%clk 0:01:54]}  Ne4 {[%clk 0:01:18]} 17. Be3 {[%clk 0:01:45]}  Rxb2 {[%clk 0:01:10]} 18. Ne5 {[%clk 0:01:34]}  h6 {[%clk 0:00:54]} 19. Rac1 {[%clk 0:01:05]}  Rfb8 {[%clk 0:00:46]} 20. Qd5 {[%clk 0:01:04]}  Nf6 {[%clk 0:00:42]} 21. Qa5 {[%clk 0:01:02]}  Qf5 {[%clk 0:00:30]} 22. Qxa7 {[%clk 0:00:53]}  Nd5 {[%clk 0:00:24]} 23. Nf3 {[%clk 0:00:37]}  Nxe3 {[%clk 0:00:17]} 24. fxe3 {[%clk 0:00:36]}  Qd3 {[%clk 0:00:17]} 25. Rce1 {[%clk 0:00:29]}  Bg3 {[%clk 0:00:15]} 26. Ne5 {[%clk 0:00:23]}  Qe4 {[%clk 0:00:08]} 27. Nf3 {[%clk 0:00:18]}  Bxe1 {[%clk 0:00:07]} 28. Rxe1 {[%clk 0:00:18]}  Qg6 {[%clk 0:00:06]} 29. Nh4 {[%clk 0:00:15]}  Qf6 {[%clk 0:00:05]} 30. Nf3 {[%clk 0:00:11]}  Qg6 {[%clk 0:00:06]} 31. Nh4 {[%clk 0:00:11]}  Qc2 {[%clk 0:00:06]} 32. Rf1 {[%clk 0:00:06]}  R2b7 {[%clk 0:00:05]} 33. Qa3 {[%clk 0:00:05]}  Qe4 {[%clk 0:00:05]} 34. Nf3 {[%clk 0:00:02]}  Rb2 {[%clk 0:00:05]} 35. Ne5 {[%clk 0:00:03]}  f6 {[%clk 0:00:04]} 36. Nf3 {[%clk 0:00:02]}  Qc2 {[%clk 0:00:04]} 37. Nh4 {[%clk 0:00:01]}  Qe4 {[%clk 0:00:04]} 38. Qb3+ {[%clk 0:00:01]}  R2xb3 {[%clk 0:00:04]} 39. axb3 {[%clk 0:00:01]}  Rxb3 {[%clk 0:00:04]} 40. Nf3 {[%clk 0:00:02]}  Rb2 {[%clk 0:00:04]} 41. Kh2 {[%clk 0:00:02]}  Qc2 {[%clk 0:00:04]} 42. Rg1 {[%clk 0:00:02]}  Qf2 {[%clk 0:00:04]} 43. Nh4 {[%clk 0:00:01]}  Qxh4 {[%clk 0:00:04]} 0-1

[Event "January 2 Late 2024"]
[Site "https://www.chess.com"]
[Date "2024.01.02"]
[Round "6"]
[White "Kappeler, Kaspar"]
[Black "Piscicelli, Daniel Orlando"]
[Result "1-0"]
[Board "174"]
[TimeControl "180+1"]
[WhiteFideId "1309072"]
[BlackFideId "101958"]
[WhiteElo "2250"]
[BlackElo "2428"]
[WhiteTeam "SUI"]
[BlackTeam "ARG"]
[WhiteClock "0:00:20"]
[BlackClock "0:00:00"]

1. d4 {[%clk 0:02:53]}  Nf6 {[%clk 0:02:58]} 2. c4 {[%clk 0:02:53]}  g6 {[%clk 0:02:49]} 3. Nc3 {[%clk 0:02:53]}  d5 {[%clk 0:02:45]} 4. cxd5 {[%clk 0:02:48]}  Nxd5 {[%clk 0:02:44]} 5. e4 {[%clk 0:02:41]}  Nxc3 {[%clk 0:02:43]} 6. bxc3 {[%clk 0:02:35]}  Bg7 {[%clk 0:02:43]} 7. Nf3 {[%clk 0:02:34]}  c5 {[%clk 0:02:42]} 8. Rb1 {[%clk 0:02:31]}  Nc6 {[%clk 0:02:40]} 9. d5 {[%clk 0:02:19]}  Bxc3+ {[%clk 0:02:38]} 10. Bd2 {[%clk 0:02:13]}  Bxd2+ {[%clk 0:02:36]} 11. Qxd2 {[%clk 0:02:01]}  Na5 {[%clk 0:02:17]} 12. Bb5+ {[%clk 0:01:54]}  Bd7 {[%clk 0:01:59]} 13. Bxd7+ {[%clk 0:01:49]}  Kxd7 {[%clk 0:02:00]} 14. O-O {[%clk 0:01:23]}  b6 {[%clk 0:01:40]} 15. e5 {[%clk 0:01:18]}  Kc7 {[%clk 0:01:37]} 16. Rfd1 {[%clk 0:01:09]}  Nb7 {[%clk 0:01:32]} 17. Qf4 {[%clk 0:01:04]}  Rf8 {[%clk 0:00:45]} 18. Ng5 {[%clk 0:00:55]}  h6 {[%clk 0:00:18]} 19. Nxf7 {[%clk 0:00:46]}  Qe8 {[%clk 0:00:17]} 20. d6+ {[%clk 0:00:37]}  exd6 {[%clk 0:00:13]} 21. exd6+ {[%clk 0:00:30]}  Kc8 {[%clk 0:00:00]} 22. d7+ {[%clk 0:00:20]} 1-0

[Event "January 2 Late 2024"]
[Site "https://www.chess.com"]
[Date "2024.01.02"]
[Round "6"]
[White "Andersson, Bjorn 1971"]
[Black "Novak, Ratko"]
[Result "1-0"]
[Board "176"]
[TimeControl "180+1"]
[WhiteFideId "1702114"]
[BlackFideId "14511827"]
[WhiteElo "2230"]
[BlackElo "2373"]
[WhiteTeam "SWE"]
[BlackTeam "CRO"]
[WhiteClock "0:00:09"]
[BlackClock "0:00:00"]

1. e4 {[%clk 0:03:00]}  d5 {[%clk 0:02:59]} 2. exd5 {[%clk 0:03:00]}  c6 {[%clk 0:02:59]} 3. dxc6 {[%clk 0:02:59]}  Nxc6 {[%clk 0:03:00]} 4. Bb5 {[%clk 0:02:57]}  Qd5 {[%clk 0:02:59]} 5. Bxc6+ {[%clk 0:02:54]}  Qxc6 {[%clk 0:03:00]} 6. Nf3 {[%clk 0:02:52]}  b6 {[%clk 0:03:00]} 7. Nc3 {[%clk 0:02:50]}  Bb7 {[%clk 0:02:59]} 8. d3 {[%clk 0:02:46]}  Nf6 {[%clk 0:02:53]} 9. Be3 {[%clk 0:02:44]}  e5 {[%clk 0:02:51]} 10. Qd2 {[%clk 0:02:40]}  Bd6 {[%clk 0:02:49]} 11. O-O-O {[%clk 0:02:37]}  O-O-O {[%clk 0:02:47]} 12. a3 {[%clk 0:02:20]}  Rhe8 {[%clk 0:02:47]} 13. Ng5 {[%clk 0:02:16]}  Qc7 {[%clk 0:02:34]} 14. f3 {[%clk 0:02:12]}  Bf8 {[%clk 0:02:17]} 15. Nb5 {[%clk 0:02:08]}  Qd7 {[%clk 0:02:09]} 16. Nxa7+ {[%clk 0:01:51]}  Kb8 {[%clk 0:02:09]} 17. Bxb6 {[%clk 0:01:50]}  Nd5 {[%clk 0:02:05]} 18. Bxd8 {[%clk 0:01:33]}  Rxd8 {[%clk 0:02:04]} 19. c4 {[%clk 0:01:31]}  Kxa7 {[%clk 0:01:51]} 20. Qa5+ {[%clk 0:01:18]}  Kb8 {[%clk 0:01:49]} 21. cxd5 {[%clk 0:01:17]}  Bxd5 {[%clk 0:01:49]} 22. Ne4 {[%clk 0:01:05]}  Ba2 {[%clk 0:01:45]} 23. Qb6+ {[%clk 0:00:53]}  Ka8 {[%clk 0:01:37]} 24. Qa6+ {[%clk 0:00:53]}  Kb8 {[%clk 0:01:37]} 25. Kd2 {[%clk 0:00:48]}  Qd4 {[%clk 0:01:21]} 26. Rc1 {[%clk 0:00:36]}  f5 {[%clk 0:01:20]} 27. Qb5+ {[%clk 0:00:27]}  Ka8 {[%clk 0:01:19]} 28. Rc7 {[%clk 0:00:21]}  Bd5 {[%clk 0:00:42]} 29. Rhc1 {[%clk 0:00:16]}  fxe4 {[%clk 0:00:27]} 30. Rc8+ {[%clk 0:00:15]}  Rxc8 {[%clk 0:00:27]} 31. Rxc8+ {[%clk 0:00:15]}  Ka7 {[%clk 0:00:28]} 32. Qb8+ {[%clk 0:00:15]}  Ka6 {[%clk 0:00:27]} 33. fxe4 {[%clk 0:00:14]}  Bxe4 {[%clk 0:00:15]} 34. Rd8 {[%clk 0:00:13]}  Qf2+ {[%clk 0:00:14]} 35. Kc3 {[%clk 0:00:13]}  Qc5+ {[%clk 0:00:13]} 36. Kb3 {[%clk 0:00:13]}  Bd5+ {[%clk 0:00:14]} 37. Rxd5 {[%clk 0:00:12]}  Qxd5+ {[%clk 0:00:14]} 38. Kc3 {[%clk 0:00:13]}  Qc6+ {[%clk 0:00:13]} 39. Kd2 {[%clk 0:00:12]}  Bd6 {[%clk 0:00:13]} 40. Qb3 {[%clk 0:00:11]}  Qb6 {[%clk 0:00:12]} 41. Qc4+ {[%clk 0:00:11]}  Kb7 {[%clk 0:00:11]} 42. b4 {[%clk 0:00:11]}  Qf2+ {[%clk 0:00:10]} 43. Kc3 {[%clk 0:00:09]}  Qxg2 {[%clk 0:00:10]} 44. Qf7+ {[%clk 0:00:09]}  Bc7 {[%clk 0:00:10]} 45. Qe6 {[%clk 0:00:08]}  Qc6+ {[%clk 0:00:10]} 46. Qxc6+ {[%clk 0:00:08]}  Kb8 {[%clk 0:00:00]} 47. a4 {[%clk 0:00:09]} 1-0

[Event "January 2 Late 2024"]
[Site "https://www.chess.com"]
[Date "2024.01.02"]
[Round "6"]
[White "Guevara Sanchez, Erick Marvin"]
[Black "Gao, Raymond"]
[Result "0-1"]
[Board "178"]
[TimeControl "180+1"]
[WhiteFideId "6700136"]
[BlackFideId "2629429"]
[WhiteElo "2224"]
[BlackElo "2354"]
[WhiteTeam "ESA"]
[BlackTeam "CAN"]
[WhiteClock "0:00:21"]
[BlackClock "0:00:13"]

1. e4 {[%clk 0:03:00]}  Na6 {[%clk 0:02:57]} 2. d4 {[%clk 0:03:00]}  c6 {[%clk 0:02:57]} 3. Nf3 {[%clk 0:02:58]}  Nc7 {[%clk 0:02:56]} 4. c4 {[%clk 0:02:58]}  d5 {[%clk 0:02:57]} 5. cxd5 {[%clk 0:02:58]}  cxd5 {[%clk 0:02:57]} 6. e5 {[%clk 0:02:57]}  Bf5 {[%clk 0:02:55]} 7. Nc3 {[%clk 0:02:55]}  e6 {[%clk 0:02:55]} 8. Nb5 {[%clk 0:02:40]}  Bb4+ {[%clk 0:02:40]} 9. Bd2 {[%clk 0:02:39]}  Bxd2+ {[%clk 0:02:37]} 10. Qxd2 {[%clk 0:02:40]}  Nxb5 {[%clk 0:02:35]} 11. Bxb5+ {[%clk 0:02:39]}  Kf8 {[%clk 0:02:36]} 12. Rc1 {[%clk 0:02:32]}  Ne7 {[%clk 0:02:33]} 13. O-O {[%clk 0:02:30]}  h6 {[%clk 0:02:30]} 14. Qb4 {[%clk 0:02:25]}  g5 {[%clk 0:02:25]} 15. Rc3 {[%clk 0:02:16]}  Kg7 {[%clk 0:02:22]} 16. Rfc1 {[%clk 0:02:15]}  Rc8 {[%clk 0:02:19]} 17. Rxc8 {[%clk 0:02:14]}  Nxc8 {[%clk 0:02:19]} 18. Qc5 {[%clk 0:02:09]}  Qb6 {[%clk 0:02:04]} 19. h4 {[%clk 0:01:50]}  g4 {[%clk 0:01:42]} 20. Nd2 {[%clk 0:01:48]}  Qxc5 {[%clk 0:01:31]} 21. Rxc5 {[%clk 0:01:47]}  Nb6 {[%clk 0:01:32]} 22. a4 {[%clk 0:01:46]}  Rc8 {[%clk 0:01:06]} 23. Nb3 {[%clk 0:01:41]}  Bc2 {[%clk 0:00:39]} 24. Rxc8 {[%clk 0:01:40]}  Nxc8 {[%clk 0:00:38]} 25. Na5 {[%clk 0:01:39]}  a6 {[%clk 0:00:21]} 26. Be2 {[%clk 0:01:18]}  Nb6 {[%clk 0:00:21]} 27. Nxb7 {[%clk 0:01:17]}  Nxa4 {[%clk 0:00:21]} 28. b4 {[%clk 0:01:14]}  Nb6 {[%clk 0:00:11]} 29. Bxa6 {[%clk 0:01:10]}  Kg6 {[%clk 0:00:11]} 30. Be2 {[%clk 0:01:09]}  h5 {[%clk 0:00:11]} 31. b5 {[%clk 0:01:02]}  f6 {[%clk 0:00:08]} 32. Nd6 {[%clk 0:01:00]}  fxe5 {[%clk 0:00:07]} 33. dxe5 {[%clk 0:01:00]}  d4 {[%clk 0:00:04]} 34. Kf1 {[%clk 0:00:45]}  d3 {[%clk 0:00:04]} 35. Bxd3+ {[%clk 0:00:46]}  Bxd3+ {[%clk 0:00:04]} 36. Ke1 {[%clk 0:00:46]}  Nc4 {[%clk 0:00:03]} 37. f4 {[%clk 0:00:27]}  Nxd6 {[%clk 0:00:03]} 38. exd6 {[%clk 0:00:27]}  Bxb5 {[%clk 0:00:04]} 39. Kd2 {[%clk 0:00:25]}  Kf5 {[%clk 0:00:04]} 40. Ke3 {[%clk 0:00:25]}  Bc6 {[%clk 0:00:05]} 41. g3 {[%clk 0:00:25]}  e5 {[%clk 0:00:05]} 42. fxe5 {[%clk 0:00:24]}  Kxe5 {[%clk 0:00:06]} 43. Kd3 {[%clk 0:00:24]}  Kxd6 {[%clk 0:00:07]} 44. Kd4 {[%clk 0:00:24]}  Bf3 {[%clk 0:00:06]} 45. Ke3 {[%clk 0:00:22]}  Ke5 {[%clk 0:00:07]} 46. Kd3 {[%clk 0:00:22]}  Bd5 {[%clk 0:00:08]} 47. Ke3 {[%clk 0:00:22]}  Be4 {[%clk 0:00:09]} 48. Kd2 {[%clk 0:00:22]}  Kd4 {[%clk 0:00:10]} 49. Ke2 {[%clk 0:00:22]}  Bd5 {[%clk 0:00:10]} 50. Kd2 {[%clk 0:00:22]}  Ke4 {[%clk 0:00:11]} 51. Ke2 {[%clk 0:00:23]}  Bc4+ {[%clk 0:00:12]} 52. Kf2 {[%clk 0:00:23]}  Kd3 {[%clk 0:00:12]} 53. Kg2 {[%clk 0:00:22]}  Ke3 {[%clk 0:00:13]} 54. Kh2 {[%clk 0:00:22]}  Bd5 {[%clk 0:00:14]} 55. Kg1 {[%clk 0:00:21]}  Kf3 {[%clk 0:00:15]} 56. Kh2 {[%clk 0:00:22]}  Be4 {[%clk 0:00:14]} 57. Kg1 {[%clk 0:00:20]}  Kxg3 {[%clk 0:00:14]} 58. Kf1 {[%clk 0:00:20]}  Kxh4 {[%clk 0:00:14]} 59. Kg1 {[%clk 0:00:20]}  Kg5 {[%clk 0:00:15]} 60. Kh2 {[%clk 0:00:21]}  h4 {[%clk 0:00:15]} 61. Kg1 {[%clk 0:00:21]}  Kf4 {[%clk 0:00:16]} 62. Kh2 {[%clk 0:00:21]}  g3+ {[%clk 0:00:16]} 63. Kh3 {[%clk 0:00:22]}  g2 {[%clk 0:00:15]} 64. Kh2 {[%clk 0:00:21]}  Ke3 {[%clk 0:00:14]} 65. Kg1 {[%clk 0:00:20]}  Ke2 {[%clk 0:00:14]} 66. Kh2 {[%clk 0:00:20]}  Kf2 {[%clk 0:00:15]} 67. Kh3 {[%clk 0:00:20]}  g1=Q {[%clk 0:00:15]} 68. Kxh4 {[%clk 0:00:20]}  Kf3 {[%clk 0:00:14]} 69. Kh5 {[%clk 0:00:20]}  Kf4 {[%clk 0:00:14]} 70. Kh6 {[%clk 0:00:19]}  Kf5 {[%clk 0:00:14]} 71. Kh7 {[%clk 0:00:20]}  Kf6+ {[%clk 0:00:14]} 72. Kh6 {[%clk 0:00:21]}  Qh1# {[%clk 0:00:13]} 0-1

[Event "January 2 Late 2024"]
[Site "https://www.chess.com"]
[Date "2024.01.02"]
[Round "6"]
[White "KSho99"]
[Black "Silvestre, Christian"]
[Result "1-0"]
[Board "183"]
[TimeControl "180+1"]
[BlackFideId "30956269"]
[WhiteElo "2160"]
[BlackElo "2314"]
[BlackTeam "USA"]
[WhiteClock "0:00:04"]
[BlackClock "0:01:49"]

1. Nf3 {[%clk 0:02:59]}  c5 {[%clk 0:02:59]} 2. Nc3 {[%clk 0:02:53]}  Nf6 {[%clk 0:02:59]} 3. d4 {[%clk 0:02:48]}  cxd4 {[%clk 0:02:58]} 4. Qxd4 {[%clk 0:02:47]}  Nc6 {[%clk 0:02:57]} 5. Qh4 {[%clk 0:02:46]}  d5 {[%clk 0:02:51]} 6. Bg5 {[%clk 0:02:37]}  e6 {[%clk 0:02:51]} 7. O-O-O {[%clk 0:02:25]}  Be7 {[%clk 0:02:47]} 8. e4 {[%clk 0:02:17]}  d4 {[%clk 0:02:43]} 9. e5 {[%clk 0:02:00]}  Nd7 {[%clk 0:02:24]} 10. Bxe7 {[%clk 0:01:40]}  Qxe7 {[%clk 0:02:23]} 11. Qxe7+ {[%clk 0:01:34]}  Kxe7 {[%clk 0:02:24]} 12. Nxd4 {[%clk 0:01:32]}  Ndxe5 {[%clk 0:02:23]} 13. f4 {[%clk 0:01:12]}  Nxd4 {[%clk 0:02:21]} 14. Rxd4 {[%clk 0:01:11]}  Nc6 {[%clk 0:02:20]} 15. Rd2 {[%clk 0:01:10]}  h6 {[%clk 0:02:18]} 16. Be2 {[%clk 0:01:08]}  g5 {[%clk 0:02:18]} 17. fxg5 {[%clk 0:01:00]}  hxg5 {[%clk 0:02:19]} 18. Ne4 {[%clk 0:00:59]}  f6 {[%clk 0:02:15]} 19. Nd6 {[%clk 0:00:45]}  Rd8 {[%clk 0:02:11]} 20. Rhd1 {[%clk 0:00:41]}  Ne5 {[%clk 0:02:10]} 21. Nf5+ {[%clk 0:00:37]}  exf5 {[%clk 0:02:05]} 22. Rxd8 {[%clk 0:00:37]}  Nc6 {[%clk 0:02:03]} 23. Rh8 {[%clk 0:00:31]}  Rb8 {[%clk 0:01:58]} 24. Bf3 {[%clk 0:00:27]}  Be6 {[%clk 0:01:57]} 25. Rxb8 {[%clk 0:00:12]}  Nxb8 {[%clk 0:01:58]} 26. Bxb7 {[%clk 0:00:12]}  Nd7 {[%clk 0:01:59]} 27. Re1 {[%clk 0:00:11]}  Kd6 {[%clk 0:01:58]} 28. Rxe6+ {[%clk 0:00:08]}  Kxe6 {[%clk 0:01:57]} 29. Bc8 {[%clk 0:00:09]}  Kd6 {[%clk 0:01:58]} 30. Bxd7 {[%clk 0:00:09]}  Kxd7 {[%clk 0:01:58]} 31. Kd2 {[%clk 0:00:09]}  Ke6 {[%clk 0:01:59]} 32. Ke3 {[%clk 0:00:09]}  f4+ {[%clk 0:01:59]} 33. Kf3 {[%clk 0:00:08]}  Kf5 {[%clk 0:02:00]} 34. c4 {[%clk 0:00:07]}  g4+ {[%clk 0:02:00]} 35. Kf2 {[%clk 0:00:07]}  Ke4 {[%clk 0:02:01]} 36. b4 {[%clk 0:00:07]}  Kd4 {[%clk 0:02:01]} 37. c5 {[%clk 0:00:07]}  Kd5 {[%clk 0:02:00]} 38. h4 {[%clk 0:00:06]}  Ke4 {[%clk 0:01:47]} 39. h5 {[%clk 0:00:06]}  g3+ {[%clk 0:01:48]} 40. Kf1 {[%clk 0:00:06]}  f3 {[%clk 0:01:49]} 41. gxf3+ {[%clk 0:00:06]}  Kxf3 {[%clk 0:01:49]} 42. h6 {[%clk 0:00:06]}  f5 {[%clk 0:01:50]} 43. h7 {[%clk 0:00:05]}  f4 {[%clk 0:01:51]} 44. h8=Q {[%clk 0:00:05]}  Ke3 {[%clk 0:01:51]} 45. Qe5+ {[%clk 0:00:04]}  Kf3 {[%clk 0:01:51]} 46. Qc3+ {[%clk 0:00:04]}  Kg4 {[%clk 0:01:51]} 47. Kg2 {[%clk 0:00:04]}  f3+ {[%clk 0:01:49]} 48. Qxf3+ {[%clk 0:00:04]} 1-0

[Event "January 2 Late 2024"]
[Site "https://www.chess.com"]
[Date "2024.01.02"]
[Round "6"]
[White "Marino Bravo, Miguel Angel"]
[Black "Nechitaylo, Nikita"]
[Result "1/2-1/2"]
[Board "185"]
[TimeControl "180+1"]
[WhiteFideId "2208970"]
[BlackFideId "34138161"]
[WhiteElo "2149"]
[BlackElo "2294"]
[WhiteTeam "ESP"]
[BlackTeam "UKR"]
[WhiteClock "0:00:14"]
[BlackClock "0:00:01"]

1. d4 {[%clk 0:02:59]}  Nf6 {[%clk 0:02:59]} 2. Bf4 {[%clk 0:02:59]}  e6 {[%clk 0:02:56]} 3. e3 {[%clk 0:02:59]}  d5 {[%clk 0:02:56]} 4. Nf3 {[%clk 0:03:00]}  Bd6 {[%clk 0:02:54]} 5. Ne5 {[%clk 0:03:00]}  O-O {[%clk 0:02:53]} 6. Nd2 {[%clk 0:03:01]}  c5 {[%clk 0:02:52]} 7. c3 {[%clk 0:03:00]}  Qc7 {[%clk 0:02:52]} 8. Bg3 {[%clk 0:02:57]}  Nbd7 {[%clk 0:02:50]} 9. f4 {[%clk 0:02:58]}  b6 {[%clk 0:02:50]} 10. Bd3 {[%clk 0:02:56]}  Bb7 {[%clk 0:02:50]} 11. O-O {[%clk 0:02:56]}  Ne4 {[%clk 0:02:51]} 12. Nxe4 {[%clk 0:02:54]}  dxe4 {[%clk 0:02:52]} 13. Be2 {[%clk 0:02:45]}  Rad8 {[%clk 0:02:48]} 14. Bh4 {[%clk 0:02:43]}  f6 {[%clk 0:02:48]} 15. Nxd7 {[%clk 0:02:43]}  Qxd7 {[%clk 0:02:47]} 16. Qb3 {[%clk 0:02:41]}  Kh8 {[%clk 0:02:37]} 17. Rad1 {[%clk 0:02:39]}  Qf7 {[%clk 0:02:16]} 18. Bg4 {[%clk 0:02:33]}  cxd4 {[%clk 0:01:54]} 19. Bxe6 {[%clk 0:02:29]}  Qh5 {[%clk 0:01:52]} 20. Bf2 {[%clk 0:02:19]}  d3 {[%clk 0:01:41]} 21. Rd2 {[%clk 0:02:07]}  Bc5 {[%clk 0:01:28]} 22. Qc4 {[%clk 0:01:51]}  a5 {[%clk 0:01:21]} 23. b4 {[%clk 0:01:49]}  Bd6 {[%clk 0:00:54]} 24. g4 {[%clk 0:01:37]}  Qh3 {[%clk 0:00:51]} 25. Bg3 {[%clk 0:01:30]}  Rfe8 {[%clk 0:00:21]} 26. bxa5 {[%clk 0:01:24]}  bxa5 {[%clk 0:00:21]} 27. Rb1 {[%clk 0:01:22]}  Ba8 {[%clk 0:00:21]} 28. Rb5 {[%clk 0:01:05]}  Rb8 {[%clk 0:00:15]} 29. a4 {[%clk 0:01:00]}  Rxb5 {[%clk 0:00:11]} 30. axb5 {[%clk 0:01:00]}  h5 {[%clk 0:00:02]} 31. Bd5 {[%clk 0:00:51]}  h4 {[%clk 0:00:02]} 32. Bxa8 {[%clk 0:00:39]}  hxg3 {[%clk 0:00:02]} 33. hxg3 {[%clk 0:00:25]}  Qxg3+ {[%clk 0:00:03]} 34. Rg2 {[%clk 0:00:21]}  Qe1+ {[%clk 0:00:03]} 35. Kh2 {[%clk 0:00:21]}  Rxa8 {[%clk 0:00:02]} 36. Qc6 {[%clk 0:00:19]}  Rd8 {[%clk 0:00:03]} 37. Qb6 {[%clk 0:00:18]}  Rd7 {[%clk 0:00:01]} 38. Qc6 {[%clk 0:00:17]}  Rd8 {[%clk 0:00:02]} 39. Qxe4 {[%clk 0:00:15]}  Qh4+ {[%clk 0:00:02]} 40. Kg1 {[%clk 0:00:14]}  Qe1+ {[%clk 0:00:03]} 41. Kh2 {[%clk 0:00:14]}  Qh4+ {[%clk 0:00:01]} 42. Kg1 {[%clk 0:00:13]}  Qe1+ {[%clk 0:00:01]} 43. Kh2 {[%clk 0:00:14]} 1/2-1/2

[Event "January 2 Late 2024"]
[Site "https://www.chess.com"]
[Date "2024.01.02"]
[Round "6"]
[White "Petersson, Kjell"]
[Black "Skaric, Djuro"]
[Result "0-1"]
[Board "187"]
[TimeControl "180+1"]
[WhiteFideId "1705148"]
[BlackFideId "934569"]
[WhiteElo "2115"]
[BlackElo "2286"]
[WhiteTeam "SWE"]
[BlackTeam "SRB"]
[WhiteClock "0:00:11"]
[BlackClock "0:01:21"]

1. d4 {[%clk 0:03:00]}  d6 {[%clk 0:03:00]} 2. Bf4 {[%clk 0:03:01]}  g6 {[%clk 0:03:00]} 3. e4 {[%clk 0:03:00]}  Bg7 {[%clk 0:03:00]} 4. Nc3 {[%clk 0:02:59]}  Nf6 {[%clk 0:03:01]} 5. Qd2 {[%clk 0:02:55]}  O-O {[%clk 0:03:01]} 6. O-O-O {[%clk 0:02:55]}  Nc6 {[%clk 0:03:01]} 7. f3 {[%clk 0:02:50]}  a6 {[%clk 0:02:58]} 8. Bh6 {[%clk 0:02:43]}  e5 {[%clk 0:02:56]} 9. d5 {[%clk 0:02:40]}  Ne7 {[%clk 0:02:56]} 10. h4 {[%clk 0:02:37]}  Nh5 {[%clk 0:02:56]} 11. g4 {[%clk 0:02:25]}  Ng3 {[%clk 0:02:56]} 12. Rh2 {[%clk 0:02:24]}  Nxf1 {[%clk 0:02:56]} 13. Rxf1 {[%clk 0:02:24]}  f5 {[%clk 0:02:45]} 14. gxf5 {[%clk 0:02:19]}  gxf5 {[%clk 0:02:45]} 15. Rg2 {[%clk 0:01:55]}  Rf7 {[%clk 0:02:45]} 16. Bxg7 {[%clk 0:01:36]}  Rxg7 {[%clk 0:02:44]} 17. Rxg7+ {[%clk 0:01:36]}  Kxg7 {[%clk 0:02:44]} 18. Qg5+ {[%clk 0:01:37]}  Kf7 {[%clk 0:02:36]} 19. Nh3 {[%clk 0:01:15]}  Qg8 {[%clk 0:02:35]} 20. Qh5+ {[%clk 0:01:07]}  Qg6 {[%clk 0:02:35]} 21. Ng5+ {[%clk 0:01:07]}  Kg7 {[%clk 0:02:33]} 22. Qxg6+ {[%clk 0:01:01]}  hxg6 {[%clk 0:02:30]} 23. Rg1 {[%clk 0:01:00]}  Bd7 {[%clk 0:02:25]} 24. h5 {[%clk 0:00:57]}  Rh8 {[%clk 0:02:24]} 25. hxg6 {[%clk 0:00:53]}  Nxg6 {[%clk 0:02:23]} 26. Ne6+ {[%clk 0:00:52]}  Bxe6 {[%clk 0:02:23]} 27. dxe6 {[%clk 0:00:52]}  f4 {[%clk 0:02:19]} 28. Nd5 {[%clk 0:00:50]}  Re8 {[%clk 0:01:38]} 29. Nxc7 {[%clk 0:00:27]}  Re7 {[%clk 0:01:37]} 30. Nd5 {[%clk 0:00:27]}  Rxe6 {[%clk 0:01:38]} 31. Kd2 {[%clk 0:00:23]}  Re8 {[%clk 0:01:36]} 32. c4 {[%clk 0:00:20]}  Rh8 {[%clk 0:01:34]} 33. Ne7 {[%clk 0:00:15]}  Rh6 {[%clk 0:01:33]} 34. Rxg6+ {[%clk 0:00:14]}  Rxg6 {[%clk 0:01:33]} 35. Nxg6 {[%clk 0:00:14]}  Kxg6 {[%clk 0:01:33]} 36. b4 {[%clk 0:00:14]}  Kf7 {[%clk 0:01:33]} 37. a4 {[%clk 0:00:13]}  Ke6 {[%clk 0:01:32]} 38. Kc3 {[%clk 0:00:13]}  Kd7 {[%clk 0:01:32]} 39. c5 {[%clk 0:00:13]}  dxc5 {[%clk 0:01:29]} 40. bxc5 {[%clk 0:00:13]}  Kc6 {[%clk 0:01:28]} 41. Kc4 {[%clk 0:00:13]}  a5 {[%clk 0:01:25]} 42. Kd3 {[%clk 0:00:13]}  Kxc5 {[%clk 0:01:25]} 43. Kc3 {[%clk 0:00:14]}  b5 {[%clk 0:01:25]} 44. axb5 {[%clk 0:00:13]}  Kxb5 {[%clk 0:01:25]} 45. Kb3 {[%clk 0:00:13]}  a4+ {[%clk 0:01:25]} 46. Ka3 {[%clk 0:00:11]}  Ka5 {[%clk 0:01:26]} 47. Kb2 {[%clk 0:00:09]}  Kb4 {[%clk 0:01:25]} 48. Ka2 {[%clk 0:00:10]}  a3 {[%clk 0:01:25]} 49. Kb1 {[%clk 0:00:10]}  Kb3 {[%clk 0:01:22]} 50. Ka1 {[%clk 0:00:10]}  Kc2 {[%clk 0:01:20]} 51. Ka2 {[%clk 0:00:10]}  Kd3 {[%clk 0:01:20]} 52. Kxa3 {[%clk 0:00:11]}  Ke3 {[%clk 0:01:21]} 53. Kb3 {[%clk 0:00:11]}  Kxf3 {[%clk 0:01:21]} 54. Kc3 {[%clk 0:00:11]}  Kxe4 {[%clk 0:01:21]} 55. Kd2 {[%clk 0:00:11]}  Kf3 {[%clk 0:01:21]} 0-1

[Event "January 2 Late 2024"]
[Site "https://www.chess.com"]
[Date "2024.01.02"]
[Round "6"]
[White "Desideri, Ricardo Maruchi"]
[Black "Minina, Veronika"]
[Result "1-0"]
[Board "188"]
[TimeControl "180+1"]
[WhiteFideId "2110440"]
[BlackFideId "4174780"]
[WhiteElo "1984"]
[BlackElo "2275"]
[WhiteTeam "BRA"]
[BlackTeam "RUS"]
[WhiteClock "0:01:13"]
[BlackClock "0:00:09"]

1. e4 {[%clk 0:03:00]}  c5 {[%clk 0:02:54]} 2. Nf3 {[%clk 0:02:59]}  Nc6 {[%clk 0:02:55]} 3. d4 {[%clk 0:02:59]}  cxd4 {[%clk 0:02:56]} 4. Nxd4 {[%clk 0:02:59]}  g6 {[%clk 0:02:56]} 5. Nc3 {[%clk 0:02:59]}  Bg7 {[%clk 0:02:56]} 6. Be3 {[%clk 0:02:59]}  Nf6 {[%clk 0:02:56]} 7. Bc4 {[%clk 0:02:53]}  O-O {[%clk 0:02:55]} 8. h4 {[%clk 0:02:52]}  Ng4 {[%clk 0:02:28]} 9. Qxg4 {[%clk 0:02:15]}  Nxd4 {[%clk 0:02:27]} 10. Qd1 {[%clk 0:02:12]}  Nc6 {[%clk 0:02:12]} 11. h5 {[%clk 0:02:11]}  d6 {[%clk 0:02:07]} 12. hxg6 {[%clk 0:02:10]}  hxg6 {[%clk 0:02:07]} 13. Qd2 {[%clk 0:01:46]}  Ne5 {[%clk 0:01:59]} 14. Bb3 {[%clk 0:01:44]}  Ng4 {[%clk 0:01:59]} 15. Bf4 {[%clk 0:01:34]}  Qa5 {[%clk 0:01:36]} 16. f3 {[%clk 0:01:32]}  e5 {[%clk 0:01:14]} 17. Bg5 {[%clk 0:01:24]}  Nf6 {[%clk 0:00:50]} 18. Bh6 {[%clk 0:01:24]}  Nh5 {[%clk 0:00:47]} 19. Rxh5 {[%clk 0:01:19]}  Qc5 {[%clk 0:00:09]} 20. Rh1 {[%clk 0:01:13]} 1-0